[Event "NED-ch Women 2021"]
[Site "Hoogeveen"]
[Date "2021.10.21"]
[Round "5.2"]
[White "Haast, Anne"]
[Black "Ratsma, Rosa"]
[Result "1-0"]
[ECO "B50"]
[WhiteElo "2310"]
[BlackElo "2297"]
[Annotator "ChessBase"]
[PlyCount "91"]
[EventDate "2021.10.17"]
[EventType "tourn"]
[EventCountry "NED"]
[SourceTitle "playchess.com"]
[Source "ChessBase"]
[SourceQuality "1"]
[TimeControl "40/5400+30:1800+30"]

1. e4 {[%emt 0:00:03]} c5 {[%emt 0:00:06]} 2. Nf3 {[%emt 0:01:01]} d6 {[%emt 0:00:08]} 3. Nc3 {[%emt 0:00:41]} Nf6 {[%emt 0:00:19]} 4. e5 {[%emt 0:00:46]} dxe5 {[%emt 0:00:08]} 5. Nxe5 {[%emt 0:00:09]} a6 {[%emt 0:00:20]} 6. g3 {[%emt 0:01:17]} Qd6 {[%emt 0:00:33]} 7. Qe2 {[%emt 0:15:11]} Nc6 {[%emt 0:05:19]} 8. Nxc6 {[%emt 0:04:55]} Qxc6 {[%emt 0:00:09]} 9. Rg1 {[%emt 0:03:57]} Bg4 {[%emt 0:02:51]} 10. Bg2 {[%emt 0:01:23]} Qxg2 {[%emt 0:01:56]} 11. Rxg2 {[%emt 0:00:12]} Bxe2 {[%emt 0:00:08]} 12. Nxe2 {[%emt 0:01:12]} Nd5 {[%emt 0:03:47]} 13. b3 {[%emt 0:07:26]} Nb4 {[%emt 0:02:18]} 14. Kd1 {[%emt 0:00:34]} e5 {[%emt 0:03:33]} 15. Bb2 {[%emt 0:00:49]} Bd6 {[%emt 0:00:52]} 16. f4 {[%emt 0:09:53]} Nc6 {[%emt 0:02:03]} 17. Nc3 {[%emt 0:01:22]} f5 {[%emt 0:16:04]} 18. Nd5 {[%emt 0:05:12]} O-O {[%emt 0:05:05]} 19. c4 {[%emt 0:00:59]} b5 {[%emt 0:09:37]} 20. Kc2 {[%emt 0:02:57]} bxc4 {[%emt 0:04:59]} 21. bxc4 {[%emt 0:00:08]} Rf7 {[%emt 0:02:09]} 22. Re1 {[%emt 0:02:49]} e4 {[%emt 0:03:30]} 23. g4 {[%emt 0:02:26]} Na5 {[%emt 0:10:03]} 24. gxf5 {[%emt 0:08:53]} Nxc4 {[%emt 0:00:27]} 25. Bc3 {[%emt 0:00:50]} Na3+ {[%emt 0:03:28]} 26. Kd1 {[%emt 0:03:35]} Nb5 {[%emt 0:03:36]} 27. Be5 {[%emt 0:02:44]} Rd8 {[%emt 0:03:06]} 28. Rxe4 {[%emt 0:02:05]} Bxe5 {[%emt 0:01:24]} 29. Rxe5 {[%emt 0:00:09]} Kf8 {[%emt 0:01:55]} 30. Ne3 {[%emt 0:05:19]} Rc7 {[%emt 0:00:23]} 31. Ke1 {[%emt 0:04:00]} Nd4 {[%emt 0:00:35]} 32. Rg3 {[%emt 0:04:22]} Rc6 {[%emt 0:04:11]} 33. Nc4 {[%emt 0:03:02]} Kf7 {[%emt 0:01:36]} 34. Rc3 {[%emt 0:01:15]} Rh6 {[%emt 0:03:27]} 35. h3 {[%emt 0:01:13]} Rc8 {[%emt 0:02:12]} 36. Kf2 {[%emt 0:00:45]} Rc7 {[%emt 0:01:52]} 37. Kg2 {[%emt 0:00:59]} Rhc6 {[%emt 0:02:31]} 38. Rd5 {[%emt 0:01:22]} Rf6 {[%emt 0:01:25]} 39. Rxd4 {[%emt 0:01:20]} cxd4 {[%emt 0:00:44]} 40. Ne5+ {[%emt 0:00:13]} Kf8 {[%emt 0:00:21]} 41. Rxc7 {[%emt 0:30:20]} Rxf5 {[%emt 0:30:13]} 42. Kf3 {[%emt 0:00:00]} g5 {[%emt 0:00:00]} 43. Nd3 {[%emt 0:00:00]} gxf4 {[%emt 0:00:00]} 44. Nxf4 {[%emt 0:00:00]} Ra5 {[%emt 0:00:00]} 45. Rxh7 {[%emt 0:00:00]} Rxa2 {[%emt 0:00:00]} 46. d3 {[%emt 0:00:00]} 1-0

[Event "NED-ch Women 2021"]
[Site "Hoogeveen"]
[Date "2021.10.21"]
[Round "5.3"]
[White "Peng, Zhaoqin"]
[Black "Roebers, Eline"]
[Result "0-1"]
[ECO "A88"]
[WhiteElo "2359"]
[BlackElo "2283"]
[Annotator "ChessBase"]
[PlyCount "116"]
[EventDate "2021.10.17"]
[EventType "tourn"]
[EventCountry "NED"]
[SourceTitle "playchess.com"]
[Source "ChessBase"]
[SourceQuality "1"]
[TimeControl "40/5400+30:1800+30"]

1. d4 {[%emt 0:00:03]} f5 {[%emt 0:00:03]} 2. Nf3 {[%emt 0:00:25]} Nf6 {[%emt 0:00:05]} 3. g3 {[%emt 0:00:27]} g6 {[%emt 0:00:06]} 4. Bg2 {[%emt 0:00:04]} Bg7 {[%emt 0:00:04]} 5. c4 {[%emt 0:00:47]} O-O {[%emt 0:00:06]} 6. Nc3 {[%emt 0:00:10]} d6 {[%emt 0:00:07]} 7. O-O {[%emt 0:00:15]} Qe8 {[%emt 0:00:36]} 8. b3 {[%emt 0:00:26]} Na6 {[%emt 0:00:45]} 9. Ba3 {[%emt 0:01:11]} c6 {[%emt 0:01:17]} 10. Qd3 {[%emt 0:00:39]} Rb8 {[%emt 0:00:23]} 11. e4 {[%emt 0:00:24]} fxe4 {[%emt 0:00:34]} 12. Nxe4 {[%emt 0:00:05]} Bf5 {[%emt 0:10:57]} 13. Nxf6+ {[%emt 0:00:11]} Bxf6 {[%emt 0:00:03]} 14. Qd2 {[%emt 0:00:30]} b5 {[%emt 0:10:57]} 15. Rfe1 {[%emt 0:03:17]} Qd7 {[%emt 0:06:01]} 16. Rac1 {[%emt 0:00:25]} Nc7 {[%emt 0:10:56]} 17. cxb5 {[%emt 0:02:02]} Nxb5 {[%emt 0:09:04]} 18. Bb2 {[%emt 0:00:10]} Nc7 {[%emt 0:01:45]} 19. Rc4 {[%emt 0:11:05]} Be6 {[%emt 0:04:01]} 20. Ra4 {[%emt 0:02:00]} Nd5 {[%emt 0:07:09]} 21. Ng5 {[%emt 0:06:55]} Bg4 {[%emt 0:02:53]} 22. h3 {[%emt 0:16:02]} Bxg5 {[%emt 0:03:42]} 23. Bxd5+ {[%emt 0:02:44]} cxd5 {[%emt 0:00:09]} 24. Qxg5 {[%emt 0:00:02]} Bf3 {[%emt 0:01:45]} 25. g4 {[%emt 0:08:13]} Rf7 {[%emt 0:06:25]} 26. Bc1 {[%emt 0:06:43]} Rbf8 {[%emt 0:01:17]} 27. Qh4 {[%emt 0:05:56]} Be4 {[%emt 0:03:34]} 28. Bh6 {[%emt 0:00:45]} Rc8 {[%emt 0:00:31]} 29. Rxe4 {[%emt 0:12:13]} dxe4 {[%emt 0:00:11]} 30. d5 {[%emt 0:00:01]} Qb7 {[%emt 0:06:44]} 31. Rxe4 {[%emt 0:01:27]} Qxd5 {[%emt 0:02:33]} 32. Rxe7 {[%emt 0:02:01]} g5 {[%emt 0:01:51]} 33. Qxg5+ {[%emt 0:00:06]} Qxg5 {[%emt 0:00:06]} 34. Bxg5 {[%emt 0:00:08]} Rxe7 {[%emt 0:00:04]} 35. Bxe7 {[%emt 0:00:03]} d5 {[%emt 0:00:17]} 36. b4 {[%emt 0:12:40]} Rc2 {[%emt 0:02:52]} 37. Bc5 {[%emt 0:06:09]} a5 {[%emt 0:02:02]} 38. a3 {[%emt 0:01:35]} a4 {[%emt 0:01:17]} 39. Bd6 {[%emt 0:01:06]} d4 {[%emt 0:04:59]} 40. Kf1 {[%emt 0:00:00]} d3 {[%emt 0:00:00]} 41. Ke1 {[%emt 0:17:47]} Kf7 {[%emt 0:01:22]} 42. f4 {[%emt 0:02:28]} Ke6 {[%emt 0:00:09]} 43. Bf8 {[%emt 0:03:23]} Kd5 {[%emt 0:08:50]} 44. f5 {[%emt 0:00:53]} Kc4 {[%emt 0:05:47]} 45. b5 {[%emt 0:04:27]} Rb2 {[%emt 0:07:17]} 46. Bg7 {[%emt 0:01:48]} Rxb5 {[%emt 0:02:18]} 47. Kd2 {[%emt 0:01:31]} Rb1 {[%emt 0:03:18]} 48. Bc3 {[%emt 0:01:46]} Rh1 {[%emt 0:00:50]} 49. Bb4 {[%emt 0:00:10]} Rxh3 {[%emt 0:00:30]} 50. f6 {[%emt 0:00:38]} Rf3 {[%emt 0:00:16]} 51. g5 {[%emt 0:00:13]} Kd4 {[%emt 0:00:30]} 52. Bc3+ {[%emt 0:00:53]} Ke4 {[%emt 0:00:07]} 53. Bb4 {[%emt 0:00:24]} Rf2+ {[%emt 0:00:17]} 54. Kd1 {[%emt 0:00:27]} Kd5 {[%emt 0:04:26]} 55. Be1 {[%emt 0:00:33]} Rf5 {[%emt 0:00:28]} 56. Bb4 {[%emt 0:00:45]} Ke6 {[%emt 0:00:13]} 57. Bd2 {[%emt 0:00:07]} Rf1+ {[%emt 0:00:47]} 58. Be1 {[%emt 0:00:08]} Rg1 {[%emt 0:00:26]} 0-1

[Event "NED-ch Women 2021"]
[Site "Hoogeveen"]
[Date "2021.10.21"]
[Round "5.4"]
[White "Lanchava, Tea"]
[Black "Keetman, Maaike"]
[Result "1-0"]
[ECO "A28"]
[WhiteElo "2214"]
[BlackElo "2145"]
[Annotator "ChessBase"]
[PlyCount "143"]
[EventDate "2021.10.17"]
[EventType "tourn"]
[EventCountry "NED"]
[SourceTitle "playchess.com"]
[Source "ChessBase"]
[SourceQuality "1"]
[TimeControl "40/5400+30:1800+30"]

1. c4 {[%emt 0:00:08]} e5 {[%emt 0:00:08]} 2. Nc3 {[%emt 0:00:36]} Nf6 {[%emt 0:00:13]} 3. Nf3 {[%emt 0:03:41]} Nc6 {[%emt 0:00:26]} 4. e3 {[%emt 0:02:14]} Be7 {[%emt 0:00:18]} 5. d4 {[%emt 0:05:31]} exd4 {[%emt 0:01:42]} 6. exd4 {[%emt 0:04:37]} d5 {[%emt 0:00:53]} 7. c5 {[%emt 0:03:12]} O-O {[%emt 0:07:33]} 8. Bb5 {[%emt 0:02:41]} Bg4 {[%emt 0:18:51]} 9. Bxc6 {[%emt 0:01:06]} bxc6 {[%emt 0:00:14]} 10. Qd3 {[%emt 0:01:09]} Bxf3 {[%emt 0:17:50]} 11. Qxf3 {[%emt 0:03:51]} Ne4 {[%emt 0:00:11]} 12. O-O {[%emt 0:10:05]} f5 {[%emt 0:01:24]} 13. Ne2 {[%emt 0:06:51]} Qd7 {[%emt 0:05:34]} 14. Qd3 {[%emt 0:00:32]} Rab8 {[%emt 0:02:32]} 15. f3 {[%emt 0:00:51]} Ng5 {[%emt 0:01:12]} 16. b3 {[%emt 0:04:17]} Ne6 {[%emt 0:10:18]} 17. f4 {[%emt 0:06:35]} Bf6 {[%emt 0:03:36]} 18. Bd2 {[%emt 0:00:37]} g6 {[%emt 0:01:23]} 19. Bc3 {[%emt 0:02:52]} Rfe8 {[%emt 0:00:58]} 20. Rae1 {[%emt 0:01:30]} Qg7 {[%emt 0:03:11]} 21. h3 {[%emt 0:00:36]} h5 {[%emt 0:03:36]} 22. g3 {[%emt 0:04:46]} Re7 {[%emt 0:00:59]} 23. Rd1 {[%emt 0:13:23]} Rbe8 {[%emt 0:01:05]} 24. Qa6 {[%emt 0:08:47]} Nd8 {[%emt 0:05:23]} 25. Rf2 {[%emt 0:00:51]} Re3 {[%emt 0:01:07]} 26. Kf1 {[%emt 0:06:12]} h4 {[%emt 0:06:18]} 27. Bd2 {[%emt 0:00:32]} hxg3 {[%emt 0:01:04]} 28. Bxe3 {[%emt 0:00:04]} gxf2 {[%emt 0:01:16]} 29. Bxf2 {[%emt 0:00:04]} Re4 {[%emt 0:00:41]} 30. Qxa7 {[%emt 0:01:44]} Qh6 {[%emt 0:05:34]} 31. Rd3 {[%emt 0:00:53]} Qh5 {[%emt 0:00:00]} 32. Ng1 {[%emt 0:01:28]} Ne6 {[%emt 0:00:00]} 33. Qa8+ {[%emt 0:00:49]} Kg7 {[%emt 0:00:00]} 34. Qxc6 {[%emt 0:00:18]} Nxf4 {[%emt 0:00:00]} 35. Qxc7+ {[%emt 0:00:20]} Kh6 {[%emt 0:00:00]} 36. Be3 {[%emt 0:01:39]} Rxe3 {[%emt 0:00:00]} 37. Qxf4+ {[%emt 0:01:22]} Bg5 {[%emt 0:00:00]} 38. Qb8 {[%emt 0:00:04]} Kh7 {[%emt 0:01:47]} 39. Qb7+ {[%emt 0:00:41]} Re7 {[%emt 0:00:12]} 40. Qxd5 {[%emt 0:00:19]} Qh4 {[%emt 0:00:50]} 41. Kg2 {[%emt 0:30:31]} Be3 {[%emt 0:06:49]} 42. Qf3 {[%emt 0:00:00]} Bxd4 {[%emt 0:05:21]} 43. c6 {[%emt 0:00:00]} Re1 {[%emt 0:01:38]} 44. Ne2 {[%emt 0:00:00]} Qg5+ {[%emt 0:02:27]} 45. Ng3 {[%emt 0:00:00]} Be5 {[%emt 0:02:56]} 46. Kf2 {[%emt 0:00:00]} Rc1 {[%emt 0:02:36]} 47. a4 {[%emt 0:00:00]} Rc2+ {[%emt 0:08:16]} 48. Ne2 {[%emt 0:00:00]} Qh4+ {[%emt 0:00:30]} 49. Kf1 {[%emt 0:00:00]} Rb2 {[%emt 0:01:00]} 50. Rd7+ {[%emt 0:00:00]} Kh6 {[%emt 0:00:51]} 51. Qe3+ {[%emt 0:00:45]} f4 {[%emt 0:00:10]} 52. Qd3 {[%emt 0:01:48]} Rd2 {[%emt 0:03:13]} 53. Qxd2 {[%emt 0:00:41]} Qxh3+ {[%emt 0:00:01]} 54. Ke1 {[%emt 0:01:15]} Qh1+ {[%emt 0:00:09]} 55. Ng1 {[%emt 0:00:19]} Qxg1+ {[%emt 0:00:14]} 56. Ke2 {[%emt 0:00:05]} Qg2+ {[%emt 0:00:25]} 57. Kd1 {[%emt 0:00:32]} Qf3+ {[%emt 0:00:23]} 58. Qe2 {[%emt 0:02:20]} Qxc6 {[%emt 0:01:32]} 59. Qh2+ {[%emt 0:00:41]} Kg5 {[%emt 0:00:01]} 60. Rd3 {[%emt 0:00:43]} Qe4 {[%emt 0:00:58]} 61. Qe2 {[%emt 0:00:26]} Qh1+ {[%emt 0:00:28]} 62. Qe1 {[%emt 0:00:27]} Qh5+ {[%emt 0:00:25]} 63. Kc2 {[%emt 0:00:01]} Kf6 {[%emt 0:00:17]} 64. Qe4 {[%emt 0:00:32]} Qh2+ {[%emt 0:00:44]} 65. Rd2 {[%emt 0:00:01]} Qh5 {[%emt 0:01:32]} 66. a5 {[%emt 0:00:22]} Qh8 {[%emt 0:00:57]} 67. Qc6+ {[%emt 0:00:11]} Kf5 {[%emt 0:00:04]} 68. a6 {[%emt 0:00:32]} Qb8 {[%emt 0:01:26]} 69. Qd7+ {[%emt 0:00:07]} Kf6 {[%emt 0:00:16]} 70. a7 {[%emt 0:00:15]} Qb4 {[%emt 0:00:25]} 71. Qc6+ {[%emt 0:01:29]} Kf5 {[%emt 0:00:05]} 72. a8=Q {[%emt 0:00:20]} 1-0

[Event "NED-ch Women 2021"]
[Site "Hoogeveen"]
[Date "2021.10.22"]
[Round "6.1"]
[White "Van Foreest, Machteld"]
[Black "Keetman, Maaike"]
[Result "1-0"]
[ECO "C07"]
[WhiteElo "2132"]
[BlackElo "2145"]
[Annotator "NA"]
[PlyCount "73"]
[EventDate "2021.10.17"]
[EventType "tourn"]
[EventCountry "NED"]
[SourceTitle "playchess.com"]
[Source "ChessBase"]
[SourceQuality "1"]
[TimeControl "40/5400+30:1800+30"]

1. e4 {[%emt 0:00:18]} e6 {[%emt 0:00:09]} 2. d4 {[%emt 0:00:07]} d5 {[%emt 0:00:06]} 3. Nd2 {[%emt 0:00:14]} c5 {[%emt 0:00:10]} 4. exd5 {[%emt 0:00:02]} Qxd5 {[%emt 0:00:07]} 5. dxc5 {[%emt 0:00:16]} Nf6 {[%emt 0:00:33]} 6. Ngf3 {[%emt 0:00:14]} Qxc5 {[%emt 0:00:26]} 7. Bd3 {[%emt 0:01:19]} Be7 {[%emt 0:00:35]} 8. O-O {[%emt 0:00:56]} O-O {[%emt 0:00:48]} 9. Qe2 {[%emt 0:07:14]} Nbd7 {[%emt 0:01:13]} 10. c4 {[%emt 0:04:35]} Qc7 {[%emt 0:06:03]} 11. b3 {[%emt 0:07:11]} b6 {[%emt 0:05:00]} 12. Bb2 {[%emt 0:01:02]} Bb7 {[%emt 1:21:20]} 13. Rad1 {[%emt 0:07:44]} Rfd8 {[%emt 0:00:00]} 14. Bb1 {[%emt 0:05:19]} a5 {[%emt 0:00:00]} 15. Nd4 {[%emt 0:07:18]} Qf4 {[%emt 0:00:00]} 16. N2f3 $11 {[%emt 0:14:12]} Bc5 {[%emt 0:00:00]} 17. h3 {[%emt 0:05:56]} Nf8 {[%emt 0:00:00]} 18. Bc1 {[%emt 0:03:00]} Qc7 {[%emt 0:00:00]} 19. Nb5 {[%emt 0:08:06]} Qc6 {[%emt 0:03:30]} 20. Bc2 {[%emt 0:11:16]} Ng6 {[%emt 0:00:00]} 21. Bxg6 {[%emt 0:01:28]} hxg6 {[%emt 0:00:00]} 22. Bf4 {[%emt 0:03:10]} Ne4 {[%emt 0:00:00]} 23. Be3 {[%emt 0:01:58]} a4 {[%emt 0:00:00]} 24. Bxc5 {[%emt 0:02:53]} bxc5 {[%emt 0:00:00]} 25. Rxd8+ {[%emt 0:00:25]} Rxd8 {[%emt 0:00:00]} 26. Rd1 {[%emt 0:00:14]} Ra8 {[%emt 0:00:00]} 27. Ne5 {[%emt 0:02:07]} Qb6 {[%emt 0:00:00]} 28. Nd7 {[%emt 0:01:35]} Qc6 {[%emt 0:00:00]} 29. f3 {[%emt 0:00:45]} Nf6 {[%emt 0:00:00]} 30. Rd6 {[%emt 0:00:30]} Nxd7 {[%emt 0:00:00]} 31. Rxc6 {[%emt 0:00:05]} Bxc6 {[%emt 0:00:00]} 32. Qd2 {[%emt 0:01:39]} axb3 {[%emt 0:00:00]} 33. axb3 {[%emt 0:00:01]} Rb8 {[%emt 0:00:00]} 34. Na7 {[%emt 0:01:20]} Ne5 {[%emt 0:03:20]} 35. Nxc6 {[%emt 0:00:34]} Nxc6 {[%emt 0:00:04]} 36. Qd6 {[%emt 0:00:02]} Rc8 {[%emt 0:01:04]} 37. Qd7 {[%emt 0:00:03]} 1-0